[Event "Championnat d'Europe Rapide"]
[Date "2024.12.08"]
[White "Baskin, Robert"]
[Black "Ciric, Pavle"]
[WhiteElo "2442"]
[BlackElo "2346"]
[Round "10.47"]
[Result "1/2-1/2"]
[TimeControl "900+10"]

1. e4 {[%emt 00:00:01] [%clk 00:15:18]} c5 {[%emt 00:00:01] [%clk 00:15:19]} 2.
Nf3 {[%emt 00:00:02] [%clk 00:15:26]} d6 {[%emt 00:00:01] [%clk 00:15:28]} 3. d4
{[%emt 00:00:02] [%clk 00:15:34]} cxd4 {[%emt 00:00:02] [%clk 00:15:37]} 4. Nxd4
{[%emt 00:00:01] [%clk 00:15:42]} Nf6 {[%emt 00:00:02] [%clk 00:15:45]} 5. Nc3
{[%emt 00:00:01] [%clk 00:15:51]} a6 {[%clk 00:15:54]} 6. Rg1 {[%emt 00:00:04]
[%clk 00:15:57]} e5 {[%emt 00:00:10] [%clk 00:15:54]} 7. Nb3 {[%emt 00:00:01]
[%clk 00:16:06]} Be6 {[%emt 00:00:03] [%clk 00:16:01]} 8. g4 {[%emt 00:00:02]
[%clk 00:16:15]} h6 {[%emt 00:00:02] [%clk 00:16:09]} 9. Qf3 {[%emt 00:01:35]
[%clk 00:14:50]} d5 {[%emt 00:02:01] [%clk 00:14:18]} 10. exd5 {[%emt 00:00:11]
[%clk 00:14:48]} Nxd5 {[%emt 00:00:02] [%clk 00:14:26]} 11. Bd2 {[%emt 00:00:15]
[%clk 00:14:43]} Nxc3 {[%emt 00:00:11] [%clk 00:14:25]} 12. Bxc3 {[%emt
00:00:15] [%clk 00:14:38]} Nc6 {[%emt 00:00:02] [%clk 00:14:34]} 13. Bd3 {[%emt
00:00:47] [%clk 00:14:00]} Bb4 {[%emt 00:04:26] [%clk 00:10:18]} 14. Bxb4 {[%emt
00:01:19] [%clk 00:12:50]} Nxb4 {[%emt 00:00:02] [%clk 00:10:26]} 15. Be4 {[%emt
00:00:02] [%clk 00:12:59]} Qc7 {[%emt 00:00:49] [%clk 00:09:46]} 16. c3 {[%emt
00:00:12] [%clk 00:12:58]} Nxa2 {[%emt 00:00:02] [%clk 00:09:54]} 17. Bxb7
{[%emt 00:06:58] [%clk 00:06:10]} Rb8 {[%emt 00:00:20] [%clk 00:09:44]} 18. Bc6+
{[%emt 00:02:45] [%clk 00:03:35]} Ke7 {[%emt 00:00:02] [%clk 00:09:52]} 19. Rxa2
{[%emt 00:00:50] [%clk 00:02:55]} Bxb3 {[%emt 00:02:49] [%clk 00:07:12]} 20. Ra1
{[%emt 00:00:28] [%clk 00:02:38]} Rb6 {[%emt 00:00:34] [%clk 00:06:48]} 21. Be4
{[%emt 00:00:06] [%clk 00:02:42]} Rd8 {[%emt 00:00:56] [%clk 00:06:02]} 22. Qe3
{[%emt 00:01:13] [%clk 00:01:39]} Bc4 {[%emt 00:01:00] [%clk 00:05:12]} 23. b4
{[%emt 00:01:00] [%clk 00:00:50]} Rbd6 {[%emt 00:00:46] [%clk 00:04:35]} 24. Qc5
{[%emt 00:00:38] [%clk 00:00:22]} Qxc5 {[%emt 00:00:01] [%clk 00:04:44]} 25.
bxc5 {[%emt 00:00:01] [%clk 00:00:31]} Rd2 {[%clk 00:04:53]} 26. Bf3 {[%emt
00:00:07] [%clk 00:00:34]} Rc2 {[%emt 00:00:32] [%clk 00:04:30]} 27. Rd1 {[%emt
00:00:09] [%clk 00:00:36]} Rxc3 {[%emt 00:00:40] [%clk 00:04:00]} 28. Rg3 {[%emt
00:00:25] [%clk 00:00:21]} Rxd1+ {[%emt 00:00:12] [%clk 00:03:57]} 29. Bxd1
{[%emt 00:00:11] [%clk 00:00:21]} Rxg3 {[%emt 00:00:30] [%clk 00:03:36]} 30.
hxg3 {[%clk 00:00:31]} Ke6 {[%emt 00:01:11] [%clk 00:02:35]} 31. Bf3 {[%emt
00:00:03] [%clk 00:00:38]} g6 {[%emt 00:00:01] [%clk 00:02:44]} 32. Kd2 {[%emt
00:00:05] [%clk 00:00:43]} f5 {[%emt 00:00:01] [%clk 00:02:53]} 33. gxf5+ {[%emt
00:00:13] [%clk 00:00:40]} gxf5 {[%emt 00:00:01] [%clk 00:03:02]} 34. Kc3 {[%emt
00:00:02] [%clk 00:00:49]} Bb5 {[%emt 00:00:27] [%clk 00:02:44]} 35. Bb7 {[%emt
00:00:24] [%clk 00:00:34]} a5 {[%emt 00:00:11] [%clk 00:02:44]} 36. Bg2 {[%emt
00:00:26] [%clk 00:00:18]} e4 {[%emt 00:00:19] [%clk 00:02:35]} 37. Kd4 {[%emt
00:00:01] [%clk 00:00:27]} a4 {[%clk 00:02:44]} 38. g4 {[%clk 00:00:36]} Bc6
{[%emt 00:00:33] [%clk 00:02:22]} 39. Bh3 {[%emt 00:00:21] [%clk 00:00:26]} fxg4
{[%emt 00:00:11] [%clk 00:02:20]} 40. Bxg4+ {[%emt 00:00:02] [%clk 00:00:35]}
Kf6 {[%clk 00:02:29]} 41. Bh5 {[%emt 00:00:13] [%clk 00:00:33]} a3 {[%emt
00:02:05] [%clk 00:00:34]} 42. Kc3 {[%emt 00:00:03] [%clk 00:00:39]} Ke5 {[%emt
00:00:01] [%clk 00:00:42]} 43. Kb3 {[%emt 00:00:21] [%clk 00:00:28]} Kd4 {[%emt
00:00:06] [%clk 00:00:46]} 44. Kxa3 {[%emt 00:00:02] [%clk 00:00:37]} Kxc5
{[%emt 00:00:01] [%clk 00:00:55]} 45. Kb2 {[%emt 00:00:05] [%clk 00:00:42]} Kd4
{[%emt 00:00:05] [%clk 00:01:00]} 46. Kc1 {[%emt 00:00:28] [%clk 00:00:24]} Ke5
{[%emt 00:00:04] [%clk 00:01:06]} 47. Kd2 {[%emt 00:00:04] [%clk 00:00:30]} Kf4
{[%emt 00:00:01] [%clk 00:01:15]} 48. Ke1 {[%emt 00:00:04] [%clk 00:00:36]} Kg5
{[%emt 00:00:04] [%clk 00:01:21]} 49. Be2 {[%emt 00:00:08] [%clk 00:00:37]} h5
{[%emt 00:00:02] [%clk 00:01:30]} 50. Kf1 {[%emt 00:00:02] [%clk 00:00:46]} h4
{[%emt 00:00:12] [%clk 00:01:27]} 51. Kg1 {[%clk 00:00:55]} Kf4 {[%emt 00:00:09]
[%clk 00:01:28]} 52. Bd1 {[%emt 00:00:07] [%clk 00:00:58]} Bd7 {[%emt 00:00:02]
[%clk 00:01:36]} 53. Be2 {[%emt 00:00:05] [%clk 00:01:04]} Bg4 {[%emt 00:00:02]
[%clk 00:01:44]} 54. Ba6 {[%emt 00:00:34] [%clk 00:00:39]} h3 {[%emt 00:00:17]
[%clk 00:01:37]} 55. Bb7 {[%emt 00:00:13] [%clk 00:00:37]} Bf5 {[%emt 00:00:05]
[%clk 00:01:41]} 56. Bc6 {[%emt 00:00:06] [%clk 00:00:41]} Kf3 {[%emt 00:00:10]
[%clk 00:01:41]} 57. Bb7 {[%emt 00:00:02] [%clk 00:00:50]} Ke2 {[%emt 00:00:11]
[%clk 00:01:39]} 58. Kh2 {[%emt 00:00:09] [%clk 00:00:51]} Kf3 {[%emt 00:00:10]
[%clk 00:01:39]} 59. Kg1 {[%emt 00:00:02] [%clk 00:00:59]} Be6 {[%emt 00:00:27]
[%clk 00:01:22]} 60. Kh2 {[%emt 00:00:05] [%clk 00:01:04]} Bd7 {[%emt 00:00:01]
[%clk 00:01:31]} 61. Bd5 {[%emt 00:00:03] [%clk 00:01:11]} Kf4 {[%emt 00:00:28]
[%clk 00:01:13]} 62. Bb7 {[%emt 00:00:02] [%clk 00:01:20]} Ke5 {[%emt 00:00:01]
[%clk 00:01:21]} 63. Ba8 {[%emt 00:00:05] [%clk 00:01:26]} Kd4 {[%emt 00:00:11]
[%clk 00:01:20]} 64. Bb7 {[%emt 00:00:02] [%clk 00:01:33]} Bf5 {[%emt 00:00:04]
[%clk 00:01:26]} 65. Bc6 {[%emt 00:00:02] [%clk 00:01:41]} Kd3 {[%emt 00:00:06]
[%clk 00:01:30]} 66. Bb7 {[%emt 00:00:01] [%clk 00:01:50]} Kd4 {[%emt 00:00:20]
[%clk 00:01:20]} 67. Bc6 {[%emt 00:00:02] [%clk 00:01:58]} Ke5 {[%emt 00:00:41]
[%clk 00:00:49]} 68. Bb7 {[%emt 00:00:01] [%clk 00:02:07]} Kf4 {[%emt 00:00:01]
[%clk 00:00:58]} 69. Bc6 {[%emt 00:00:02] [%clk 00:02:16]} Bg4 {[%emt 00:00:44]
[%clk 00:00:24]} 70. Bb7 {[%emt 00:00:02] [%clk 00:02:23]} Kf3 {[%emt 00:00:08]
[%clk 00:00:25]} 71. Bc6 {[%emt 00:00:02] [%clk 00:02:32]} Bf5 {[%emt 00:00:02]
[%clk 00:00:33]} 72. Bb7 {[%emt 00:00:01] [%clk 00:02:41]} Kxf2 {[%emt 00:00:03]
[%clk 00:00:40]} 73. Bxe4 {[%emt 00:00:02] [%clk 00:02:50]} Bxe4 {[%emt
00:00:01] [%clk 00:00:49]} 74. Kxh3 {[%clk 00:02:59]} 1/2-1/2

[Site "Europe Echecs"]

[Event "Championnat d'Europe Rapide"]
[Date "2024.12.08"]
[White "Narva, Mai"]
[Black "Tweedie, Steven"]
[WhiteElo "2413"]
[BlackElo "2172"]
[Round "10.48"]
[Result "1/2-1/2"]
[TimeControl "900+10"]

1. e4 {[%emt 00:01:04] [%clk 00:14:16]} e5 {[%emt 00:00:03] [%clk 00:15:17]} 2.
Nf3 {[%emt 00:00:04] [%clk 00:14:23]} Nc6 {[%emt 00:00:02] [%clk 00:15:25]} 3.
Bc4 {[%emt 00:00:04] [%clk 00:14:29]} Nf6 {[%emt 00:00:04] [%clk 00:15:31]} 4.
d3 {[%emt 00:00:03] [%clk 00:14:35]} Bc5 {[%emt 00:01:10] [%clk 00:14:32]} 5.
Nc3 {[%emt 00:00:05] [%clk 00:14:40]} d6 {[%emt 00:00:05] [%clk 00:14:37]} 6.
Na4 {[%emt 00:00:15] [%clk 00:14:35]} Bb6 {[%emt 00:00:13] [%clk 00:14:34]} 7.
Nxb6 {[%emt 00:01:56] [%clk 00:12:49]} axb6 {[%emt 00:00:02] [%clk 00:14:42]} 8.
a4 {[%emt 00:00:44] [%clk 00:12:15]} Be6 {[%emt 00:00:22] [%clk 00:14:30]} 9.
Bxe6 {[%emt 00:00:12] [%clk 00:12:13]} fxe6 {[%emt 00:00:02] [%clk 00:14:38]}
10. O-O {[%emt 00:00:10] [%clk 00:12:13]} O-O {[%emt 00:00:04] [%clk 00:14:44]}
11. Re1 {[%emt 00:00:20] [%clk 00:12:03]} Qe8 {[%emt 00:00:43] [%clk 00:14:10]}
12. c3 {[%emt 00:00:23] [%clk 00:11:51]} Nh5 {[%emt 00:01:57] [%clk 00:12:23]}
13. d4 {[%emt 00:00:27] [%clk 00:11:34]} Rd8 {[%emt 00:02:01] [%clk 00:10:31]}
14. Bg5 {[%emt 00:01:36] [%clk 00:10:08]} Rd7 {[%emt 00:00:32] [%clk 00:10:10]}
15. dxe5 {[%emt 00:04:49] [%clk 00:05:29]} dxe5 {[%emt 00:01:26] [%clk
00:08:54]} 16. Qe2 {[%emt 00:00:34] [%clk 00:05:05]} Qg6 {[%emt 00:01:26] [%clk
00:07:38]} 17. Rad1 {[%emt 00:00:37] [%clk 00:04:38]} Rxd1 {[%emt 00:00:54]
[%clk 00:06:54]} 18. Rxd1 {[%emt 00:00:01] [%clk 00:04:46]} Rxf3 {[%emt
00:00:09] [%clk 00:06:55]} 19. Qxf3 {[%emt 00:00:04] [%clk 00:04:52]} Qxg5
{[%emt 00:00:01] [%clk 00:07:04]} 20. b4 {[%emt 00:01:11] [%clk 00:03:52]} Nf6
{[%emt 00:01:01] [%clk 00:06:12]} 21. b5 {[%emt 00:00:10] [%clk 00:03:53]} Ne7
{[%emt 00:00:01] [%clk 00:06:20]} 22. Rd8+ {[%emt 00:00:10] [%clk 00:03:53]} Kf7
{[%emt 00:00:03] [%clk 00:06:28]} 23. g3 {[%emt 00:00:06] [%clk 00:03:56]} Qg6
{[%emt 00:00:25] [%clk 00:06:14]} 24. Rd7 {[%emt 00:00:13] [%clk 00:03:53]} Qxe4
{[%emt 00:01:37] [%clk 00:04:47]} 25. Qxe4 {[%emt 00:00:02] [%clk 00:04:01]}
Nxe4 {[%emt 00:00:01] [%clk 00:04:56]} 26. Rxc7 {[%emt 00:00:04] [%clk
00:04:07]} Ke8 {[%emt 00:00:01] [%clk 00:05:05]} 27. Rxb7 {[%emt 00:00:40] [%clk
00:03:37]} Nxc3 {[%emt 00:00:02] [%clk 00:05:13]} 28. Rxb6 {[%emt 00:00:09]
[%clk 00:03:37]} Nxa4 {[%emt 00:00:04] [%clk 00:05:20]} 29. Rxe6 {[%emt
00:00:07] [%clk 00:03:39]} Kd7 {[%emt 00:00:21] [%clk 00:05:09]} 30. Rxe5 {[%emt
00:00:03] [%clk 00:03:46]} Kd6 {[%emt 00:00:16] [%clk 00:05:04]} 31. f4 {[%emt
00:00:10] [%clk 00:03:46]} Nd5 {[%emt 00:00:34] [%clk 00:04:40]} 32. Rg5 {[%emt
00:00:34] [%clk 00:03:22]} g6 {[%emt 00:00:09] [%clk 00:04:41]} 33. f5 {[%emt
00:00:06] [%clk 00:03:26]} gxf5 {[%emt 00:01:04] [%clk 00:03:47]} 34. Rxf5
{[%emt 00:00:02] [%clk 00:03:34]} Nac3 {[%emt 00:00:19] [%clk 00:03:38]} 35. Rf7
{[%emt 00:00:11] [%clk 00:03:32]} Nxb5 {[%emt 00:00:08] [%clk 00:03:40]} 36.
Rxh7 {[%emt 00:00:03] [%clk 00:03:40]} Nd4 {[%emt 00:00:07] [%clk 00:03:43]} 37.
h4 {[%emt 00:00:21] [%clk 00:03:29]} Nf6 {[%emt 00:00:14] [%clk 00:03:39]} 38.
Ra7 {[%emt 00:00:03] [%clk 00:03:35]} Ke6 {[%emt 00:00:12] [%clk 00:03:37]} 39.
Kg2 {[%emt 00:00:08] [%clk 00:03:37]} Kf5 {[%emt 00:00:07] [%clk 00:03:40]} 40.
Kh3 {[%emt 00:00:16] [%clk 00:03:31]} Ne6 {[%emt 00:00:15] [%clk 00:03:35]} 41.
Ra6 {[%emt 00:00:26] [%clk 00:03:15]} Ng7 {[%emt 00:00:56] [%clk 00:02:50]} 42.
g4+ {[%emt 00:00:21] [%clk 00:03:04]} Nxg4 {[%emt 00:00:23] [%clk 00:02:37]} 43.
Ra5+ {[%emt 00:00:24] [%clk 00:02:50]} Ne5 {[%emt 00:00:01] [%clk 00:02:45]} 44.
Rb5 {[%emt 00:00:53] [%clk 00:02:08]} Nh5 {[%emt 00:00:05] [%clk 00:02:49]}
1/2-1/2

[Site "Europe Echecs"]

[Event "Championnat d'Europe Rapide"]
[Date "2024.12.08"]
[White "Stanojoski, Zvonko"]
[Black "Avramidou, Anastasia"]
[WhiteElo "2401"]
[BlackElo "2298"]
[Round "10.49"]
[Result "1/2-1/2"]
[TimeControl "900+10"]

1. e4 {[%emt 00:00:05] [%clk 00:15:15]} c5 {[%emt 00:00:50] [%clk 00:14:32]} 2.
Nf3 {[%emt 00:00:06] [%clk 00:15:18]} d6 {[%emt 00:00:02] [%clk 00:14:40]} 3. d4
{[%emt 00:00:04] [%clk 00:15:24]} cxd4 {[%emt 00:00:02] [%clk 00:14:47]} 4. Nxd4
{[%emt 00:00:02] [%clk 00:15:33]} Nf6 {[%emt 00:00:01] [%clk 00:14:55]} 5. Nc3
{[%emt 00:00:02] [%clk 00:15:41]} a6 {[%emt 00:00:01] [%clk 00:15:04]} 6. Be2
{[%emt 00:00:09] [%clk 00:15:43]} e5 {[%emt 00:00:09] [%clk 00:15:05]} 7. Nb3
{[%emt 00:00:04] [%clk 00:15:49]} Be7 {[%emt 00:00:03] [%clk 00:15:12]} 8. O-O
{[%emt 00:00:04] [%clk 00:15:55]} O-O {[%emt 00:00:05] [%clk 00:15:17]} 9. a4
{[%emt 00:00:08] [%clk 00:15:56]} Be6 {[%emt 00:00:03] [%clk 00:15:24]} 10. Bf3
{[%emt 00:00:04] [%clk 00:16:02]} Nc6 {[%emt 00:00:28] [%clk 00:15:06]} 11. Be3
{[%emt 00:00:13] [%clk 00:16:00]} Rc8 {[%emt 00:01:01] [%clk 00:14:15]} 12. Re1
{[%emt 00:00:40] [%clk 00:15:30]} Nb4 {[%emt 00:03:46] [%clk 00:10:38]} 13. a5
{[%emt 00:00:08] [%clk 00:15:33]} d5 {[%emt 00:00:01] [%clk 00:10:48]} 14. Bb6
{[%emt 00:00:02] [%clk 00:15:41]} Qd7 {[%emt 00:00:06] [%clk 00:10:51]} 15. exd5
{[%emt 00:00:07] [%clk 00:15:43]} Nbxd5 {[%emt 00:00:13] [%clk 00:10:48]} 16.
Nxd5 {[%emt 00:00:12] [%clk 00:15:42]} Nxd5 {[%emt 00:00:13] [%clk 00:10:45]}
17. Rxe5 {[%emt 00:00:30] [%clk 00:15:22]} Nxb6 {[%emt 00:01:55] [%clk
00:09:00]} 18. axb6 {[%emt 00:00:10] [%clk 00:15:22]} Qxd1+ {[%emt 00:00:02]
[%clk 00:09:08]} 19. Rxd1 {[%emt 00:00:35] [%clk 00:14:57]} Rxc2 {[%emt
00:00:01] [%clk 00:09:17]} 20. Nd4 {[%emt 00:00:16] [%clk 00:14:51]} Rxb2 {[%emt
00:01:07] [%clk 00:08:20]} 21. Nxe6 {[%emt 00:01:19] [%clk 00:13:43]} fxe6
{[%clk 00:08:28]} 22. Rxe6 {[%emt 00:00:35] [%clk 00:13:18]} Bc5 {[%emt
00:00:24] [%clk 00:08:14]} 23. h3 {[%emt 00:01:26] [%clk 00:12:01]} Rxb6 {[%emt
00:02:05] [%clk 00:06:20]} 24. Rxb6 {[%emt 00:01:40] [%clk 00:10:31]} Bxb6
{[%emt 00:00:01] [%clk 00:06:29]} 25. Rd7 {[%emt 00:00:25] [%clk 00:10:16]} a5
{[%emt 00:00:16] [%clk 00:06:23]} 26. Rxb7 {[%emt 00:00:03] [%clk 00:10:23]} Bc5
{[%emt 00:00:03] [%clk 00:06:29]} 27. Rb5 {[%emt 00:00:11] [%clk 00:10:22]} Bb4
{[%emt 00:00:02] [%clk 00:06:38]} 28. Bd5+ {[%emt 00:00:05] [%clk 00:10:26]} Kh8
{[%emt 00:00:02] [%clk 00:06:47]} 29. g3 {[%emt 00:00:24] [%clk 00:10:12]} Be1
{[%emt 00:01:42] [%clk 00:05:15]} 30. Rb2 {[%emt 00:00:24] [%clk 00:09:56]} a4
{[%emt 00:01:18] [%clk 00:04:10]} 31. Re2 {[%emt 00:00:01] [%clk 00:10:04]} Bb4
{[%emt 00:00:14] [%clk 00:04:06]} 32. f4 {[%emt 00:00:39] [%clk 00:09:35]}
1/2-1/2

[Site "Europe Echecs"]

[Event "Championnat d'Europe Rapide"]
[Date "2024.12.08"]
[White "Redzisz, Michal"]
[Black "Tsolakidou, Stavroula"]
[WhiteElo "2263"]
[BlackElo "2451"]
[Round "10.50"]
[Result "1/2-1/2"]
[TimeControl "900+10"]

1. e4 {[%emt 00:01:15] [%clk 00:13:58]} e6 {[%emt 00:00:13] [%clk 00:15:14]} 2.
d4 {[%emt 00:00:09] [%clk 00:13:59]} d5 {[%emt 00:00:02] [%clk 00:15:22]} 3.
exd5 {[%emt 00:00:01] [%clk 00:14:07]} exd5 {[%emt 00:00:03] [%clk 00:15:29]} 4.
Bf4 {[%emt 00:00:01] [%clk 00:14:16]} Nf6 {[%emt 00:00:33] [%clk 00:15:06]} 5.
Nc3 {[%emt 00:00:01] [%clk 00:14:25]} c6 {[%emt 00:03:35] [%clk 00:11:41]} 6.
Qd2 {[%emt 00:00:21] [%clk 00:14:15]} Bb4 {[%emt 00:00:28] [%clk 00:11:23]} 7.
f3 {[%emt 00:00:02] [%clk 00:14:23]} O-O {[%emt 00:00:14] [%clk 00:11:18]} 8.
O-O-O {[%emt 00:00:03] [%clk 00:14:31]} a5 {[%emt 00:00:51] [%clk 00:10:37]} 9.
g4 {[%emt 00:00:01] [%clk 00:14:40]} a4 {[%emt 00:00:10] [%clk 00:10:37]} 10. a3
{[%emt 00:02:39] [%clk 00:12:11]} Ba5 {[%emt 00:00:12] [%clk 00:10:34]} 11. Qd3
{[%emt 00:01:28] [%clk 00:10:52]} b5 {[%emt 00:00:14] [%clk 00:10:31]} 12. Na2
{[%emt 00:00:01] [%clk 00:11:01]} Na6 {[%emt 00:01:50] [%clk 00:08:51]} 13. Bd2
{[%emt 00:00:27] [%clk 00:10:45]} Bxd2+ {[%emt 00:00:15] [%clk 00:08:45]} 14.
Qxd2 {[%emt 00:00:12] [%clk 00:10:43]} Qd6 {[%emt 00:01:19] [%clk 00:07:36]} 15.
Bd3 {[%emt 00:02:31] [%clk 00:08:23]} Rb8 {[%emt 00:00:06] [%clk 00:07:39]} 16.
Nb4 {[%emt 00:01:20] [%clk 00:07:13]} Nxb4 {[%emt 00:00:56] [%clk 00:06:54]} 17.
Qxb4 {[%emt 00:00:01] [%clk 00:07:21]} Qf4+ {[%emt 00:01:22] [%clk 00:05:41]}
18. Qd2 {[%emt 00:00:43] [%clk 00:06:48]} Qd6 {[%emt 00:00:19] [%clk 00:05:32]}
19. Qb4 {[%emt 00:00:23] [%clk 00:06:36]} Qf4+ {[%emt 00:00:26] [%clk 00:05:16]}
20. Qd2 {[%emt 00:00:02] [%clk 00:06:44]} Qd6 {[%emt 00:00:54] [%clk 00:04:33]}
1/2-1/2

[Site "Europe Echecs"]

[Event "Championnat d'Europe Rapide"]
[Date "2024.12.08"]
[White "Pipiras, Filipa Fortuna"]
[Black "Brunner, Nicolas"]
[WhiteElo "2178"]
[BlackElo "2413"]
[Round "10.51"]
[Result "0-1"]
[TimeControl "900+10"]

1. d4 {[%emt 00:00:08] [%clk 00:15:11]} d5 {[%emt 00:00:01] [%clk 00:15:19]} 2.
c4 {[%emt 00:00:21] [%clk 00:15:01]} e6 {[%emt 00:00:01] [%clk 00:15:27]} 3. Nf3
{[%emt 00:00:13] [%clk 00:14:58]} Nf6 {[%emt 00:00:03] [%clk 00:15:35]} 4. g3
{[%emt 00:00:03] [%clk 00:15:04]} dxc4 {[%emt 00:00:06] [%clk 00:15:39]} 5. Bg2
{[%emt 00:00:02] [%clk 00:15:12]} Bb4+ {[%emt 00:00:02] [%clk 00:15:47]} 6. Bd2
{[%emt 00:00:09] [%clk 00:15:14]} a5 {[%emt 00:00:02] [%clk 00:15:55]} 7. Qc2
{[%emt 00:00:08] [%clk 00:15:15]} Bxd2+ {[%emt 00:00:03] [%clk 00:16:02]} 8.
Qxd2 {[%emt 00:00:04] [%clk 00:15:21]} c6 {[%emt 00:00:02] [%clk 00:16:10]} 9.
a4 {[%emt 00:00:08] [%clk 00:15:23]} Ne4 {[%emt 00:00:03] [%clk 00:16:17]} 10.
Qc1 {[%emt 00:01:09] [%clk 00:14:24]} Nd6 {[%emt 00:00:11] [%clk 00:16:16]} 11.
Ne5 {[%emt 00:00:23] [%clk 00:14:12]} Qb6 {[%emt 00:00:54] [%clk 00:15:33]} 12.
Qc3 {[%emt 00:01:38] [%clk 00:12:42]} f6 {[%emt 00:00:39] [%clk 00:15:04]} 13.
Nf3 {[%emt 00:01:03] [%clk 00:11:49]} c5 {[%emt 00:00:29] [%clk 00:14:46]} 14.
Nbd2 {[%emt 00:01:10] [%clk 00:10:49]} Nc6 {[%emt 00:01:02] [%clk 00:13:54]} 15.
Nxc4 {[%emt 00:01:59] [%clk 00:09:00]} Nxc4 {[%emt 00:00:05] [%clk 00:13:59]}
16. Qxc4 {[%emt 00:00:03] [%clk 00:09:07]} cxd4 {[%emt 00:00:36] [%clk
00:13:32]} 17. O-O {[%emt 00:00:04] [%clk 00:09:13]} O-O {[%emt 00:00:18] [%clk
00:13:24]} 18. Rfd1 {[%emt 00:01:10] [%clk 00:08:13]} Rd8 {[%emt 00:00:02] [%clk
00:13:32]} 19. Qb5 {[%emt 00:00:24] [%clk 00:07:59]} Qc7 {[%emt 00:01:17] [%clk
00:12:25]} 20. Qc4 {[%emt 00:00:59] [%clk 00:07:11]} Qb6 {[%emt 00:00:27] [%clk
00:12:08]} 21. Qb5 {[%emt 00:00:02] [%clk 00:07:19]} Qa7 {[%emt 00:00:22] [%clk
00:11:56]} 22. e3 {[%emt 00:02:53] [%clk 00:04:35]} e5 {[%emt 00:00:09] [%clk
00:11:57]} 23. exd4 {[%emt 00:00:26] [%clk 00:04:19]} exd4 {[%emt 00:00:06]
[%clk 00:12:02]} 24. Qc4+ {[%emt 00:00:42] [%clk 00:03:47]} Kh8 {[%emt 00:00:05]
[%clk 00:12:07]} 25. Re1 {[%emt 00:00:15] [%clk 00:03:41]} Bg4 {[%emt 00:01:01]
[%clk 00:11:16]} 26. Qb5 {[%emt 00:00:23] [%clk 00:03:28]} d3 {[%emt 00:01:20]
[%clk 00:10:06]} 27. Nd2 {[%emt 00:00:25] [%clk 00:03:13]} Nd4 {[%emt 00:02:37]
[%clk 00:07:40]} 28. Qxb7 {[%emt 00:00:22] [%clk 00:03:00]} Ne2+ {[%emt
00:00:54] [%clk 00:06:57]} 29. Kf1 {[%emt 00:01:15] [%clk 00:01:55]} Qxb7 {[%emt
00:00:05] [%clk 00:07:03]} 30. Bxb7 {[%emt 00:00:02] [%clk 00:02:02]} Rab8
{[%clk 00:07:12]} 31. Bg2 {[%emt 00:01:00] [%clk 00:01:12]} Rxb2 {[%emt
00:00:07] [%clk 00:07:15]} 32. Nc4 {[%emt 00:00:01] [%clk 00:01:31]} Rb4 {[%emt
00:01:26] [%clk 00:06:09]} 33. Ne3 {[%emt 00:00:39] [%clk 00:01:01]} Be6 {[%emt
00:01:09] [%clk 00:05:11]} 34. Red1 {[%emt 00:00:12] [%clk 00:00:59]} Nc3 {[%emt
00:02:50] [%clk 00:02:31]} 35. Rd2 {[%emt 00:00:02] [%clk 00:01:07]} Rxa4 {[%emt
00:00:44] [%clk 00:01:57]} 36. Rxa4 {[%emt 00:00:16] [%clk 00:01:01]} Nxa4
{[%emt 00:00:01] [%clk 00:02:06]} 37. Bc6 {[%emt 00:00:30] [%clk 00:00:41]} Nc5
{[%emt 00:00:05] [%clk 00:02:10]} 38. Nd1 {[%emt 00:00:15] [%clk 00:00:37]} a4
{[%emt 00:00:23] [%clk 00:01:58]} 39. Nc3 {[%emt 00:00:11] [%clk 00:00:35]} a3
{[%emt 00:00:02] [%clk 00:02:06]} 40. Rd1 {[%emt 00:00:01] [%clk 00:00:43]} d2
{[%emt 00:00:42] [%clk 00:01:35]} 41. Bb5 {[%emt 00:00:21] [%clk 00:00:33]} Bb3
{[%emt 00:00:14] [%clk 00:01:30]} 42. Ra1 {[%emt 00:00:17] [%clk 00:00:26]}
d1=Q+ {[%emt 00:00:06] [%clk 00:01:34]} 43. Nxd1 {[%emt 00:00:02] [%clk
00:00:34]} Rxd1+ {[%emt 00:00:01] [%clk 00:01:43]} 44. Rxd1 {[%emt 00:00:06]
[%clk 00:00:38]} Bxd1 {[%clk 00:01:52]} 45. Bc4 {[%emt 00:00:02] [%clk
00:00:46]} Bb3 {[%emt 00:00:01] [%clk 00:02:00]} 0-1

[Site "Europe Echecs"]